bitfinex/quotes_ETHUSD_20241225
["timestamp","ask_amount","ask_price","bid_price","bid_amount"]
[1735129668412,2.86848,3486.2,3485.5,0.757]
[1735129668722,0.1725935,3486.4,3485.5,0.757]
[1735129668723,2.86854,3486.1,3485.5,0.757]
[1735129669017,3.17265335,3486.1,3485.5,0.757]
[1735129669213,2.86854,3486.1,3485.5,0.757]
[1735129669911,2.86838,3486.3,3485.5,0.757]
[1735129670098,0.1725935,3486.4,3485.5,0.757]
[1735129670303,2.86846,3486.2,3485.5,0.757]
[1735129670497,0.1725935,3486.4,3485.5,0.757]
[1735129670498,2.86861,3486.0,3485.5,0.757]
[1735129670883,2.86861,3486.0,3485.2,0.58086111]
[1735129671213,2.86853,3486.2,3485.2,1.00575622]
[1735129671570,0.1725935,3486.4,3485.3,0.7986]
[1735129671571,0.20837624,3486.4,3485.3,0.7986]
[1735129671770,2.86861,3486.0,3485.3,0.7986]
[1735129674893,2.8687,3485.9,3485.3,0.7986]
[1735129675291,2.86894,3485.7,3485.3,0.7986]
[1735129675490,0.32267674,3485.6,3483.5,2.87062]
[1735129675716,2.86934,3485.2,3484.6,0.7986]
[1735129676608,2.86886,3485.7,3484.6,0.7986]
[1735129676789,3.69502,3485.8,3484.6,0.7986]
[1735129677175,0.8262,3485.8,3484.7,0.02868592]
[1735129677406,0.86198274,3486.3,3484.6,0.7986]
[1735129677608,2.86887,3485.7,3484.7,0.42337465]
[1735129677824,2.86845,3486.2,3484.7,0.42337465]
[1735129677825,0.03578274,3486.1,3484.7,0.42337465]
[1735129678028,2.86931,3485.2,3484.6,0.7986]
[1735129678379,2.86861,3486.0,3484.6,0.7986]
[1735129678579,0.03578274,3485.9,3484.6,0.7986]
[1735129678781,2.86899,3485.6,3484.7,0.42337865]
[1735129679010,0.40884201,3485.9,3484.7,0.42337865]
[1735129679196,2.86936,3485.1,3484.6,0.7986]
[1735129679397,0.03578274,3485.8,3484.4,0.58450159]
[1735129679398,2.86976,3484.7,3484.4,0.58450159]
[1735129679715,2.86985,3484.5,3484.3,0.7986]
[1735129679880,2.86993,3484.4,3484.0,0.7986]
[1735129680282,2.86961,3484.8,3484.0,0.7986]
[1735129681336,2.86969,3484.7,3484.0,0.7986]
[1735129681636,1.19925927,3485.9,3484.0,0.7986]
[1735129681841,2.8691,3485.5,3484.3,2.86998]
[1735129681981,0.8262,3485.9,3484.2,0.7986]
[1735129681982,2.86921,3485.3,3484.2,0.7986]
[1735129682481,2.86921,3485.3,3484.3,0.7986]
[1735129682686,2.86921,3485.3,3484.4,0.366865]
[1735129683087,2.86878,3485.8,3484.4,0.366865]
[1735129683303,2.86942,3485.1,3484.3,0.7986]
[1735129685940,2.86878,3485.8,3484.3,0.7986]
[1735129685941,2.86918,3485.4,3484.3,0.7986]
[1735129686141,0.8262,3485.9,3484.5,0.764]
[1735129686342,0.8262,3485.9,3484.6,0.764]
[1735129686343,2.86892,3485.7,3484.6,0.764]
[1735129686640,2.86898,3485.6,3484.6,0.764]
[1735129686943,0.03578274,3485.8,3484.7,0.764]
[1735129687089,2.86898,3485.6,3484.7,0.764]
[1735129688901,2.86874,3485.9,3484.6,0.363384]
[1735129689060,2.86874,3485.9,3484.9,2.86951]
[1735129689257,2.86874,3485.9,3485.0,1.16223114]
[1735129689960,2.86854,3486.1,3485.0,1.16223114]
[1735129690268,2.86854,3486.1,3485.1,0.764]
[1735129690411,3.0409335,3486.4,3485.3,0.764]
[1735129690606,3.0409335,3486.4,3485.4,0.764]
[1735129690810,3.0409335,3486.4,3485.6,0.764]
[1735129691609,0.1725935,3486.4,3485.6,0.764]
[1735129691861,0.1725935,3486.4,3485.7,0.764]
[1735129692262,0.1725935,3486.4,3485.7,3.63285]
[1735129692442,0.1725935,3486.4,3485.8,0.764]
[1735129692753,0.1725935,3486.4,3486.0,0.764]
[1735129693513,0.7609,3486.3,3485.3,0.764]
[1735129693863,2.86855,3486.1,3485.3,0.764]
[1735129694162,0.1725935,3486.4,3485.3,3.63317]
[1735129694362,2.86837,3486.3,3485.4,0.764]
[1735129694515,0.20837624,3486.4,3485.4,1.127312]
[1735129694717,2.86846,3486.2,3485.5,0.58651497]
[1735129695318,2.86846,3486.2,3485.4,0.764]
[1735129696869,2.86846,3486.2,3485.4,1.32988812]
[1735129698382,0.1725935,3486.4,3485.5,0.7858]
[1735129698738,0.1725935,3486.4,3485.8,0.7858]
[1735129698939,0.1725935,3486.4,3485.5,0.55]
[1735129698940,0.1725935,3486.4,3486.1,0.7858]
[1735129699156,0.1725935,3486.4,3486.2,0.36544]
[1735129699985,0.1725935,3486.4,3486.1,0.7858]
[1735129700890,0.1725935,3486.4,3486.2,0.55]
[1735129701093,0.1725935,3486.4,3486.3,1.3644779]
[1735129701385,0.1725935,3486.4,3486.3,4.20417]
[1735129701590,0.1725935,3486.4,3486.3,7.20417]
[1735129701591,0.01903265,3486.4,3486.3,7.20417]
[1735129701887,0.01903265,3486.4,3486.3,8.211444]
[1735129702068,0.01903265,3486.4,3486.3,8.79770369]
[1735129702672,0.01903265,3486.4,3486.3,11.27852192]
[1735129702982,2.86714,3487.8,3486.4,3.7971]
[1735129703148,2.86722,3487.7,3486.6,3.6652]
[1735129703350,3.66585,3488.1,3486.6,3.6652]
[1735129703351,2.86702,3488.0,3486.7,0.74623]
[1735129703687,2.86702,3488.0,3486.6,0.7971]
[1735129703688,0.7918,3487.8,3486.6,0.7971]
[1735129704017,2.86768,3487.2,3486.6,0.7971]
[1735129704295,2.86773,3487.1,3486.6,0.7971]
[1735129704839,2.8678,3487.0,3486.6,0.7971]
[1735129705189,3.65961,3487.0,3486.3,0.58625969]
[1735129705478,2.86781,3487.0,3486.3,0.58625969]
[1735129705677,2.86788,3486.9,3486.3,0.58625969]
[1735129710105,2.86773,3487.1,3486.3,0.58625969]
[1735129711402,0.7918,3487.3,3486.3,0.58625969]
[1735129711641,2.86815,3486.6,3486.1,0.7971]
[1735129712271,0.7918,3486.7,3485.3,1.20081908]
[1735129712594,2.8685,3486.2,3485.4,0.7971]
[1735129712802,0.7918,3486.7,3485.4,0.7971]
[1735129713106,2.8683,3486.4,3485.5,0.366633]
[1735129714592,0.82758274,3486.7,3485.4,0.7971]
[1735129714751,2.86879,3485.8,3485.4,0.7971]
[1735129714957,2.86902,3485.6,3484.8,0.8235]
[1735129716889,2.86922,3485.3,3484.8,0.8235]
[1735129717203,0.7803,3485.5,3484.8,0.8235]
[1735129717426,3.64934,3485.5,3484.8,0.8235]
[1735129718402,3.64934,3485.5,3484.8,1.40042583]
[1735129719009,2.86904,3485.5,3484.8,1.40042583]
[1735129719235,2.86874,3485.9,3484.8,1.40042583]
[1735129719530,2.86911,3485.4,3484.8,1.40042583]
[1735129720928,3.233644,3485.9,3484.8,1.40042583]
[1735129720929,2.86922,3485.3,3484.8,1.40042583]
[1735129721074,0.03578274,3485.2,3484.4,0.8235]
[1735129721277,0.7803,3485.3,3484.4,0.8235]
[1735129721519,2.86966,3484.8,3484.4,0.8235]
[1735129722630,2.86921,3485.3,3484.4,0.8235]
[1735129722833,4.18107072,3486.1,3484.4,0.8235]
[1735129722834,2.86901,3485.6,3484.5,0.42645841]
[1735129723023,1.99867072,3486.1,3484.7,0.7651]
[1735129723199,2.86891,3485.7,3484.7,0.7651]
[1735129723618,2.86891,3485.7,3484.7,3.63475]
[1735129723926,2.86877,3485.9,3484.9,0.7651]
[1735129724107,1.99867072,3486.1,3484.9,0.7651]
[1735129724283,2.86871,3485.9,3484.9,0.7651]
[1735129724478,0.03578274,3485.8,3485.0,0.418477]
[1735129724679,2.86871,3485.9,3485.0,0.418477]
[1735129724879,2.86885,3485.8,3485.0,0.418477]
[1735129726511,3.72195274,3486.1,3485.0,0.418477]
[1735129726717,3.72195274,3486.1,3484.9,0.7651]
[1735129726718,2.86902,3485.6,3484.9,0.7651]
[1735129727033,2.86906,3485.5,3484.9,0.7651]
[1735129728215,2.86911,3485.4,3484.9,0.7651]
[1735129728729,0.781,3485.4,3484.8,0.57747623]
[1735129728931,0.781,3485.4,3484.5,0.7802]
[1735129728932,2.8696,3484.8,3484.5,0.7802]
[1735129729136,2.86931,3485.2,3484.5,0.7802]
[1735129729281,0.03578274,3485.2,3484.0,0.7802]
[1735129729484,2.86979,3484.6,3484.0,0.7802]
[1735129729837,2.86979,3484.6,3484.0,1.15842477]
[1735129730938,0.03578274,3484.9,3483.9,0.58431537]
[1735129731088,2.8701,3484.2,3483.7,0.7802]
[1735129731537,0.03578274,3484.6,3483.7,0.7802]
[1735129731738,0.781,3484.5,3483.4,0.7802]
[1735129732046,2.87033,3484.0,3483.4,0.7802]
[1735129733238,0.781,3484.5,3483.4,0.7802]
[1735129733536,2.87001,3484.4,3483.4,0.7802]
[1735129733734,2.87001,3484.4,3483.5,0.365099]
[1735129734243,0.781,3484.5,3483.5,0.365099]
[1735129734543,2.87027,3484.0,3483.4,0.7802]
[1735129735707,2.86993,3484.4,3483.4,0.7802]
[1735129735890,2.87011,3484.2,3483.4,0.7802]
[1735129736088,2.86991,3484.5,3483.4,2.87072]
[1735129736291,0.781,3484.8,3483.5,2.87066]
[1735129736292,2.8697,3484.7,3483.5,2.87066]
[1735129736493,2.8698,3484.6,3483.6,1.067266]
[1735129736793,2.87004,3484.3,3483.6,1.067266]
[1735129736991,2.87004,3484.3,3483.6,0.7802]
[1735129737422,0.781,3484.8,3483.6,0.7802]
[1735129738394,2.8699,3484.5,3483.6,0.7802]
[1735129739113,2.87,3484.4,3483.6,0.7802]
[1735129739700,2.87,3484.4,3483.7,0.37802]
[1735129740798,2.87002,3484.3,3483.7,0.37802]
[1735129741008,2.87002,3484.3,3483.6,0.7802]
[1735129742649,2.86948,3485.0,3483.6,0.7802]
[1735129742863,3.47427997,3485.6,3483.0,0.58152367]
[1735129742864,1.25527997,3485.6,3483.9,0.55]
[1735129743003,0.781,3485.6,3484.4,0.7802]
[1735129743599,3.64997,3485.6,3484.4,0.7802]
[1735129744255,3.64997,3485.6,3484.4,3.65013]
[1735129744596,2.86875,3485.9,3484.5,0.7948]
[1735129744841,2.86868,3486.0,3484.7,0.7948]
[1735129745150,2.86846,3486.2,3485.0,3.66422]
[1735129745328,2.86846,3486.2,3485.1,0.02869062]
[1735129745731,2.86853,3486.1,3485.0,3.66422]
[1735129745907,3.235653,3486.1,3485.0,3.66422]
[1735129746966,0.03578274,3486.0,3485.0,0.7948]
[1735129747114,2.86878,3485.8,3485.0,0.7948]
[1735129748025,0.8027,3486.4,3485.0,0.7948]
[1735129748204,2.8688,3485.8,3485.0,0.7948]
[1735129749945,2.86886,3485.7,3485.0,0.7948]
[1735129750348,0.03578274,3485.6,3485.0,0.7948]
[1735129750547,2.86894,3485.6,3485.0,0.7948]
[1735129750836,2.86912,3485.4,3485.0,0.7948]
[1735129751049,2.86912,3485.4,3484.4,3.44987758]
[1735129751050,2.86953,3484.9,3484.4,0.7948]
[1735129751375,0.286953,3484.8,3484.4,0.7948]
[1735129751671,2.86952,3484.9,3484.4,0.7948]
[1735129751998,2.86969,3484.7,3484.4,0.7948]
[1735129752625,5.73888,3485.0,3484.0,0.7948]
[1735129752943,2.8701,3484.2,3483.1,0.7948]
[1735129753274,2.8701,3484.2,3483.1,3.66579]
[1735129753472,2.8701,3484.2,3483.2,0.48666091]
[1735129754171,2.86969,3484.7,3483.5,2.87059]
[1735129754375,2.86969,3484.7,3483.6,0.8235016]
[1735129754527,0.83848274,3484.9,3483.6,0.7948]
[1735129754733,2.87018,3484.1,3483.6,0.7948]
[1735129755079,2.87003,3484.3,3483.6,0.7948]
[1735129756526,2.86944,3485.0,3483.7,0.7948]
[1735129756729,2.86952,3484.9,3483.9,0.7948]
[1735129756956,2.86962,3484.8,3483.9,1.161316]
[1735129758127,0.83848274,3485.2,3483.9,1.161316]
[1735129758128,2.90552274,3484.7,3483.9,1.161316]
[1735129758377,0.03578274,3484.7,3483.9,0.7948]
[1735129758574,2.86952,3484.9,3483.9,0.7948]
[1735129758732,2.86986,3484.5,3483.9,0.7948]
[1735129759176,2.87004,3484.3,3483.9,0.7948]
[1735129759330,0.03578274,3484.2,3483.9,0.7948]
[1735129759528,2.87004,3484.3,3483.9,0.7948]
[1735129760163,2.87013,3484.2,3483.5,0.7981]
[1735129760711,0.8101,3484.7,3483.5,0.7981]
[1735129760883,2.87002,3484.3,3483.5,0.7981]
[1735129761752,0.03578274,3484.6,3483.5,0.7981]
[1735129761976,2.8701,3484.2,3483.5,0.7981]
[1735129766196,2.87019,3484.1,3483.5,0.7981]
[1735129769219,2.86994,3484.4,3483.5,0.7981]
[1735129770400,2.86977,3484.6,3483.7,0.7981]
[1735129774322,2.86966,3484.8,3483.7,0.7981]
[1735129774519,0.03578274,3484.7,3483.7,0.7981]
[1735129774744,2.87015,3484.2,3483.7,0.7981]
[1735129779233,1.18107072,3484.8,3483.7,0.7981]
[1735129779431,2.86995,3484.4,3483.7,0.7981]
[1735129780929,0.41206042,3484.7,3483.7,0.7981]
[1735129781268,2.87003,3484.3,3483.7,0.7981]
[1735129782265,2.86985,3484.5,3483.7,0.7981]
[1735129783064,0.37627768,3484.7,3483.7,0.7981]
[1735129783065,2.87008,3484.3,3483.7,0.7981]
[1735129783264,0.287008,3484.2,3483.7,0.7981]
[1735129783622,2.87008,3484.3,3483.7,0.7981]
[1735129784971,0.03578274,3484.5,3483.7,0.7981]
[1735129785167,2.87017,3484.2,3483.7,0.7981]
[1735129785917,0.37627768,3484.7,3483.7,0.7981]
[1735129786122,2.86979,3484.6,3483.7,0.7981]
[1735129787540,2.87002,3484.3,3483.7,0.7981]
[1735129788179,0.40547677,3484.6,3483.7,0.7981]
[1735129788470,0.40547677,3484.6,3483.3,0.8161]
[1735129788471,0.03578274,3484.2,3483.3,0.8161]
[1735129788775,2.87049,3483.8,3483.3,0.8161]
[1735129789079,2.87015,3484.2,3483.3,0.8161]
[1735129789223,2.87078,3483.4,3483.0,2.01691908]
[1735129789422,2.87086,3483.3,3482.7,2.5987105]
[1735129790529,2.87086,3483.3,3482.7,1.39789142]
[1735129790730,0.8251,3483.7,3482.7,1.39789142]
[1735129790937,2.87076,3483.4,3482.7,1.39789142]
[1735129792275,1.55059572,3484.1,3482.8,0.8161]
[1735129792429,2.87036,3483.9,3482.9,0.8161]
[1735129792633,2.87036,3483.9,3483.0,0.8161]
[1735129795281,2.00617072,3484.3,3483.0,0.8161]
[1735129795482,2.87061,3483.6,3483.0,0.8161]
[1735129795694,0.287061,3483.6,3483.0,0.8161]
[1735129795874,2.87087,3483.3,3483.0,0.8161]
[1735129797144,2.87069,3483.5,3483.0,0.8161]
[1735129797742,1.18107072,3483.9,3483.0,0.8161]
[1735129798556,4.05144072,3483.9,3483.0,0.8161]
[1735129799457,2.87045,3483.8,3483.1,0.8161]
[1735129799638,1.18107072,3484.1,3483.7,0.1992]
[1735129799839,2.87042,3483.8,3483.7,0.1992]
[1735129800681,3.69552,3483.8,3483.7,0.1992]
[1735129804465,2.87042,3483.8,3483.7,0.1992]
[1735129805312,3.81838768,3483.8,3483.7,0.1992]
[1735129806419,5.15478768,3483.8,3483.7,0.1992]
[1735129806827,2.87125,3482.8,3482.7,1.20081908]
[1735129808014,2.87125,3482.8,3482.6,2.62662862]
[1735129808015,2.87125,3482.8,3482.6,0.8254]
[1735129808522,0.7864,3483.2,3482.3,0.8254]
[1735129808708,3.236771,3483.1,3482.3,0.8254]
[1735129808874,2.87141,3482.7,3482.3,0.8254]
[1735129809311,0.7864,3483.2,3482.3,0.8254]
[1735129809513,2.87116,3483.0,3482.3,0.8254]
[1735129809714,2.87119,3482.9,3482.3,0.8254]
[1735129811899,0.03578274,3482.8,3482.3,0.8254]
[1735129812629,2.87119,3482.9,3482.3,0.8254]
[1735129815317,0.36933727,3482.9,3482.3,0.8254]
[1735129815488,2.87125,3482.8,3482.3,0.8254]
[1735129815901,0.7864,3483.2,3482.3,0.8254]
[1735129816259,2.87117,3482.9,3482.3,0.8254]
[1735129822768,2.87103,3483.1,3482.3,0.8254]
[1735129823075,2.87111,3483.0,3482.3,0.8254]
[1735129824567,0.7864,3483.2,3482.3,0.8254]
[1735129824769,2.87118,3482.9,3482.3,0.8254]
[1735129826888,2.87118,3482.9,3482.2,0.56243926]
[1735129826889,4.66048132,3483.8,3482.7,2.87126]
[1735129827103,1.79000132,3483.8,3482.9,0.8122]
[1735129827596,2.87079,3483.4,3482.9,0.8122]
[1735129827806,0.03578274,3483.3,3482.9,0.8122]
[1735129828627,1.79000132,3483.8,3482.9,0.8122]
[1735129828898,1.79000132,3483.8,3483.1,0.8122]
[1735129829056,4.66043132,3483.8,3483.1,0.8122]
[1735129829263,2.87043,3483.8,3483.1,0.8122]
[1735129830990,0.03578274,3483.7,3483.1,0.8122]
[1735129831191,2.87117,3482.9,3482.8,0.8122]
[1735129831491,0.7894,3483.4,3482.6,1.20081908]
[1735129831643,2.87133,3482.7,3482.6,1.20081908]
[1735129832663,3.66073,3482.7,3482.6,1.20081908]
[1735129832980,3.66073,3482.7,3481.9,0.58274313]
[1735129832981,2.87176,3482.2,3481.8,0.8122]
[1735129833196,2.87133,3482.7,3481.8,0.8122]
[1735129833497,2.87159,3482.4,3481.8,0.8122]
[1735129833789,2.87162,3482.4,3481.8,0.8122]
[1735129834149,2.87142,3482.6,3481.8,0.8122]
[1735129834861,1.19333421,3482.8,3481.8,0.8122]
[1735129835061,1.22911695,3482.8,3481.8,0.8122]
[1735129835292,0.66965283,3482.7,3481.8,0.8122]
[1735129836711,2.87157,3482.5,3481.8,0.8122]
[1735129840316,0.66965283,3482.7,3481.8,0.8122]
[1735129840484,2.87134,3482.7,3481.8,0.8122]
[1735129840666,2.87142,3482.6,3481.8,0.8122]
[1735129841172,0.03578274,3482.8,3481.8,0.8122]
[1735129841377,2.87165,3482.4,3481.8,0.8122]
[1735129842874,2.87171,3482.3,3481.8,0.8122]
[1735129843070,0.03578274,3482.2,3481.4,0.7883]
[1735129843275,2.87216,3481.7,3481.4,0.7883]
[1735129843505,2.87216,3481.7,3481.0,0.7883]
[1735129843704,0.03578274,3481.6,3481.0,0.7883]
[1735129844029,2.87225,3481.6,3481.0,0.7883]
[1735129844331,2.87243,3481.4,3481.0,0.7883]
[1735129845129,0.8062,3481.7,3481.0,0.7883]
[1735129845423,2.87208,3481.8,3481.0,0.7883]
[1735129845719,2.87216,3481.7,3481.0,0.7883]
[1735129846014,2.87226,3481.6,3481.0,0.7883]
[1735129846227,0.8062,3482.0,3481.0,0.7883]
[1735129846228,2.87207,3481.9,3481.0,0.7883]
[1735129846429,1.19333421,3482.3,3481.1,0.7883]
[1735129846631,1.19333421,3482.3,3481.4,3.0]
[1735129846916,1.19333421,3482.3,3481.5,0.7883]
[1735129847132,1.19333421,3482.3,3481.7,0.7883]
[1735129848593,2.87134,3482.7,3481.8,0.8218]
[1735129849190,4.06438421,3483.1,3481.8,0.8218]
[1735129849191,1.19333421,3483.1,3481.8,0.8218]
[1735129849401,1.19333421,3483.1,3481.9,0.8218]
[1735129849595,2.15958159,3483.3,3481.9,0.8218]
[1735129849596,1.99953421,3483.2,3481.9,0.8218]
[1735129849793,0.70299358,3483.1,3481.9,0.8218]
[1735129850930,2.87112,3483.0,3482.0,2.87189]
[1735129851830,2.87112,3483.0,3481.9,0.8218]
[1735129852188,2.87112,3483.0,3481.9,3.69379]
[1735129854029,0.70299358,3483.1,3481.9,0.8218]
[1735129854030,2.87117,3482.9,3481.9,0.8218]
[1735129856336,2.90695274,3482.9,3481.9,0.8218]
[1735129857483,2.87135,3482.7,3481.9,0.8218]
[1735129857719,0.03578274,3482.6,3481.9,0.8218]
[1735129858527,2.87163,3482.4,3481.6,0.8218]
[1735129858720,2.87164,3482.4,3481.6,0.8218]
[1735129859330,2.87164,3482.4,3481.4,4.20081908]
[1735129859331,2.87198,3482.0,3481.4,1.20081908]
[1735129859640,0.8176,3481.7,3481.0,1.20081908]
[1735129859790,3.68977,3481.7,3481.0,1.20081908]
[1735129860531,0.8176,3481.7,3481.1,0.57195932]
[1735129860736,3.68959,3482.0,3481.1,1.01154002]
[1735129861035,3.68952,3482.0,3481.7,0.0504]
[1735129864146,2.87199,3481.9,3481.7,0.0504]
[1735129864895,0.03578274,3481.8,3481.7,0.0504]
[1735129865095,2.87199,3481.9,3481.7,0.0504]
[1735129869750,2.54943217,3482.4,3481.7,0.0504]
[1735129869903,2.54943217,3482.4,3481.8,0.8013]
[1735129869904,1.19333421,3482.4,3481.8,0.8013]
[1735129870122,1.19333421,3482.4,3482.2,0.8013]
[1735129870761,1.19333421,3482.4,3482.2,3.67304]
[1735129871664,2.87057,3483.7,3482.2,3.67302]
[1735129871665,2.87085,3483.3,3482.2,3.67302]
[1735129871870,2.87065,3483.6,3482.4,0.8013]
[1735129872056,1.19333421,3483.7,3482.6,2.87133]
[1735129872259,4.44121776,3483.7,3482.7,0.8013]
[1735129872428,4.44121776,3483.7,3482.7,3.67262]
[1735129872624,2.87061,3483.6,3482.7,0.8013]
[1735129873679,0.7904,3483.8,3482.7,0.83000697]
[1735129874252,0.7904,3483.8,3482.8,2.87124]
[1735129874469,1.19333421,3484.0,3482.8,3.27594331]
[1735129875288,4.06362421,3484.0,3482.9,0.83000532]
[1735129875466,2.87043,3483.8,3482.9,0.8013]
[1735129875630,0.03578274,3483.7,3482.9,0.8013]
[1735129875982,0.03578274,3483.7,3482.9,1.24360494]
[1735129876147,2.87043,3483.8,3482.9,1.24360494]
[1735129876362,0.03578274,3483.7,3482.9,1.24360494]
[1735129876579,2.87043,3483.8,3482.9,1.24360494]
[1735129877074,0.03578274,3483.7,3482.9,1.24360494]
[1735129877274,1.19333421,3484.2,3483.0,0.41148649]
[1735129877480,4.06344421,3484.2,3483.2,0.57104573]
[1735129877651,4.06344421,3484.2,3483.3,0.8013]
[1735129877652,1.19333421,3484.2,3483.3,0.8013]
[1735129878193,4.06344421,3484.2,3483.3,0.8013]
[1735129878490,2.87011,3484.2,3483.3,0.8013]
[1735129879890,2.87035,3483.9,3483.3,0.8013]
[1735129880088,0.03578274,3483.8,3483.3,0.8013]
[1735129880896,0.03578274,3483.8,3483.0,0.8331]
[1735129880897,0.32639601,3483.8,3483.0,0.8331]
[1735129881197,2.87127,3482.8,3482.4,1.20081908]
[1735129881387,2.8715,3482.5,3482.4,1.20081908]
[1735129882587,2.8715,3482.5,3481.9,3.00204771]
[1735129882588,2.87166,3482.3,3481.8,0.8331]
[1735129883340,2.87175,3482.2,3481.8,0.8331]
[1735129883645,2.87203,3481.9,3481.5,0.8331]
[1735129884388,0.03578274,3482.7,3481.5,0.8331]
[1735129884593,0.38640827,3482.6,3481.5,0.8331]
[1735129884786,2.87191,3482.0,3481.5,0.8331]
[1735129886012,0.38640827,3482.6,3481.5,1.4089101]
[1735129886426,0.03578274,3482.5,3481.5,1.4089101]
[1735129886713,2.87189,3482.1,3481.5,1.4089101]
[1735129886920,3.159079,3482.1,3481.5,1.4089101]
[1735129887675,2.87192,3482.0,3481.5,0.5758101]
[1735129888295,2.90770274,3482.0,3481.5,0.5758101]
[1735129888713,2.87192,3482.0,3481.5,0.5758101]
[1735129888923,2.90770274,3482.0,3481.5,0.5758101]
[1735129889539,2.87192,3482.0,3481.5,0.5758101]
[1735129889717,0.8283,3482.2,3481.5,0.5758101]
[1735129890033,3.70007,3482.2,3481.5,0.5758101]
[1735129890334,2.87184,3482.1,3481.5,0.5758101]
[1735129891806,1.485464,3482.2,3481.5,0.5758101]
[1735129892007,2.87166,3482.3,3481.5,0.5758101]
[1735129892222,0.8283,3482.5,3481.5,0.5758101]
[1735129892545,2.87176,3482.2,3481.5,0.5758101]
[1735129892731,0.8283,3482.5,3481.5,0.5758101]
[1735129892940,2.87184,3482.1,3481.5,0.5758101]
[1735129893455,0.03578274,3482.0,3481.5,0.5758101]
[1735129893637,2.90741274,3482.4,3481.5,0.5758101]
[1735129893958,2.87183,3482.1,3481.5,0.5758101]
[1735129894603,0.4122121,3482.3,3481.5,0.5758101]
[1735129895000,0.03578274,3482.3,3481.5,0.5758101]
[1735129895701,0.86408274,3482.5,3481.5,0.5758101]
[1735129896104,0.8283,3482.5,3481.5,0.5758101]
[1735129896333,3.69984,3482.5,3481.5,0.5758101]
[1735129896571,2.87188,3482.1,3481.5,0.5758101]
[1735129897785,2.87191,3482.0,3481.5,0.5758101]
[1735129897953,2.90769274,3482.0,3481.5,0.5758101]
[1735129898338,2.87191,3482.0,3481.5,0.5758101]
[1735129899082,0.03578274,3481.9,3481.5,0.5758101]
[1735129899634,2.87191,3482.0,3481.5,0.5758101]
[1735129902174,0.03578274,3481.9,3481.5,0.5758101]
[1735129903045,2.87207,3481.8,3481.5,0.5758101]
[1735129906089,2.90785274,3481.8,3481.5,0.5758101]
[1735129906297,2.90785274,3481.8,3481.2,0.8331]
[1735129906847,2.87207,3481.8,3481.2,0.8331]
[1735129908066,0.29076927,3481.9,3481.2,0.8331]
[1735129908252,2.87187,3482.1,3481.2,0.8331]
[1735129908453,0.03578274,3482.4,3481.4,0.58494771]
[1735129908655,2.87192,3482.0,3481.4,0.58494771]
[1735129909169,2.90770274,3482.0,3481.4,0.58494771]
[1735129910067,2.87192,3482.0,3481.4,0.58494771]
[1735129910266,3.16269027,3482.0,3481.4,0.58494771]
[1735129910563,2.87207,3481.8,3481.4,0.58494771]
[1735129920912,3.69987,3482.5,3481.4,0.58494771]
[1735129921209,2.02163421,3482.5,3481.4,0.58494771]
[1735129921424,2.87171,3482.3,3481.4,0.58494771]
[1735129921584,2.87171,3482.3,3481.8,0.7899]
[1735129922936,2.87174,3482.2,3481.8,0.7899]
[1735129924163,0.03578274,3482.1,3481.8,0.7899]
[1735129924465,2.90762274,3482.1,3481.8,0.7899]
[1735129924960,2.87184,3482.1,3482.0,0.58368209]
[1735129925514,1.19333421,3482.4,3482.0,0.58368209]
[1735129925847,1.19333421,3482.4,3482.1,0.7746]
[1735129926045,1.19333421,3482.3,3482.2,0.42588832]
[1735129926672,1.19333421,3482.3,3482.2,1.20048832]
[1735129926871,1.19333421,3482.3,3482.2,3.64634]
[1735129927489,1.19333421,3482.9,3482.3,0.7746]
[1735129927653,1.19333421,3482.9,3482.5,2.87147]
[1735129927845,1.19333421,3482.9,3482.6,0.7746]
[1735129928648,1.19333421,3483.3,3482.6,0.7746]
[1735129929388,1.19333421,3483.3,3482.6,1.50845042]
[1735129929687,1.19333421,3483.3,3482.6,0.7746]
[1735129929991,4.06412421,3483.4,3482.6,0.7746]
[1735129930750,4.06412421,3483.4,3482.8,0.58367883]
[1735129932264,2.87079,3483.4,3482.8,0.58367883]
[1735129932664,1.19333421,3483.5,3482.9,0.7746]
[1735129933466,4.06400421,3483.5,3482.9,0.7746]
[1735129933666,3.45964883,3483.5,3482.9,0.7746]
[1735129934193,2.87079,3483.4,3482.9,0.7746]
[1735129935317,0.03578274,3483.3,3482.2,0.7746]
[1735129935454,0.03578274,3483.3,3482.5,0.5881727]
[1735129935795,0.18180958,3483.3,3482.6,0.7746]
[1735129936346,4.06393421,3483.6,3482.6,0.7746]
[1735129936547,1.19333421,3483.6,3482.7,3.64592]
[1735129936789,1.19333421,3483.6,3482.8,0.7746]
[1735129937195,2.8712,3482.9,3482.0,0.7746]
[1735129937577,2.8712,3482.9,3482.3,0.57431373]
[1735129937766,0.28712,3482.9,3482.3,0.57431373]
[1735129937962,2.87101,3483.1,3482.4,0.8196]
[1735129938276,2.87076,3483.4,3482.4,0.8196]
[1735129938686,2.01073421,3483.5,3482.4,0.8196]
[1735129938855,2.87095,3483.2,3482.4,0.8196]
[1735129939049,0.03578274,3483.1,3482.4,0.8196]
[1735129939649,2.87108,3483.0,3482.4,0.8196]
[1735129939867,0.29067327,3483.1,3482.4,0.8196]
[1735129939868,0.82038274,3482.9,3482.4,0.8196]
[1735129940089,2.87134,3482.7,3482.4,0.8196]
[1735129940793,0.7846,3482.9,3482.4,0.8196]
[1735129940964,3.65579,3482.9,3482.4,0.8196]
[1735129941170,2.87109,3483.0,3482.4,0.8196]
[1735129941365,2.87127,3482.8,3482.4,0.8196]
[1735129942802,0.7846,3483.2,3482.4,0.8196]
[1735129943094,3.65559,3483.2,3482.4,0.8196]
[1735129943301,2.87102,3483.1,3482.4,0.8196]
[1735129944798,2.87087,3483.3,3482.4,0.8196]
[1735129945004,1.19333421,3483.4,3482.4,0.8196]